Workbook

Sheet 입력검수
A1: 전주대 자체입력 권별 진도표
J2: 2013.10.26
A3: 권수 | B3: 쪽수 | C3: 분량 | D3: 입력자 | E3: v1 작업량 | F3: v1 잔여량 | G3: v2 검수범위 | H3: v2 1차검수 | I3: v2 2차검수 | J3: v2 3차검수 | K3: 비고
A4: 26 | B4: 1-273 | C4: =273-1 -> 272 | D4: 심경순 | E4: - | G4: 좌동 | H4: 이혜령
B5: 277-596 | C5: =534-277 -> 257 | D5: 이혜령 | E5: -
B6: 597-888 | C6: =888-597 -> 291 | D6: 김정화 | E6: - | G6: 좌동 | H6: 이혜령
A7: 27 | B7: 3-118 | C7: 116 | D7: 송정현 | E7: - | F7: - | G7: 좌동 | H7: 이혜령
B8: 119-263 | C8: 145 | D8: 김정화 | E8: 145
B9: 267-386 | C9: =386-267 -> 119 | D9: 김가희 | E9: -
B10: 387-572 | C10: =572-387 -> 185 | D10: 김유빈 | E10: - | F10: -
B11: 573-584 | C11: =584-573 -> 11 | D11: 김가희 | E11: -
B12: 585-724 | C12: =724-585 -> 139 | D12: 안성은 | E12: - | F12: -
B13: 725-852 | C13: =852-725 -> 127 | D13: 김가희 | E13: - | F13: -
B14: 853-860 | C14: =860-853 -> 7 | D14: 조수연 | E14: -
B15: 861-878 | C15: =878-861 -> 17 | D15: 조수연 | E15: - | F15: -
B16: 879-920 | C16: =920-879 -> 41 | D16: 김정화 | E16: -
B17: 921-994 | C17: =994-921 -> 73 | D17: 김정화 | E17: -
A18: 28 | B18: 3-52 | C18: =52-3 -> 49 | D18: 심경순 | E18: - | G18: 좌동 | H18: 이혜령
B19: 53-102 | C19: =102-53 -> 49 | D19: 이혜령 | E19: -
B20: 103-154 | C20: =154-103 -> 51 | D20: 김정화 | E20: - | G20: 좌동 | H20: 이혜령
B21: 155-200 | C21: =200-155 -> 45 | D21: 송정현 | E21: - | G21: 좌동
B22: 205-255 | C22: =255-205 -> 50 | D22: 김가희 | E22: - | G22: 좌동 | H22: 심경순 | I22: 김정화 | J22: 이혜령 | K22: 2013-05-05
B23: 256-305 | C23: =305-256 -> 49 | D23: 김유빈 | E23: - | G23: 좌동 | H23: 송정현 | I23: 문경득 | J23: 이혜령 | K23: 2013-09-25
B24: 306-357 | C24: =357-306 -> 51 | D24: 안성은 | E24: - | G24: 좌동 | H24: 송정현 | I24: 문경득 | J24: 이혜령 | K24: 2013-04-12
B25: 358-618 | C25: =618-358 -> 260 | D25: 조수연 | E25: - | G25: 358-394 | H25: 이혜령 | K25: 2013-05-06
B26: 619-637 | C26: =637-619 -> 18 | D26: 김가희 | E26: - | G26: 좌동 | H26: 심경순 | I26: 김정화 | J26: 이혜령 | K26: 2013-04-09
B27: 639-669 | C27: =669-639 -> 30 | D27: 김유빈 | E27: - | G27: 좌동 | H27: 심경순 | I27: 김정화 | J27: 이혜령 | K27: 2013-05-08
B28: 673-836 | C28: =836-673 -> 163 | D28: 안성은 | E28: - | G28: 673-723 | H28: 심경순 | I28: 김정화 | J28: 이혜령 | K28: 2013-05-27
G29: 724-774 | H29: 송정현 | I29: 문경득 | J29: 이혜령 | K29: 2013-05-27
G30: 775-836 | H30: 심경순 | I30: 김정화 | J30: 이혜령 | K30: 2013-05-30
B31: 837-857 | C31: =857-837 -> 20 | D31: 김가희 | E31: - | G31: 837-857 | H31: 심경순 | I31: 김정화 | J31: 이혜령 | K31: 2013-07-17
B32: 859-928 | C32: =928-859 -> 69 | D32: 김유빈 | E32: - | G32: 859-876 | H32: 심경순 | I32: 김정화 | J32: 이혜령 | K32: 2013-07-14
G33: 877-928 | H33: 송정현 | I33: 문경득 | J33: 이혜령 | K33: 2013-05-29
B34: 929-948 | C34: =948-929 -> 19 | D34: 김가희 | E34: - | G34: 좌동 | H34: 심경순 | I34: 김정화 | J34: 이혜령 | K34: 2013-07-17
A35: 29 | B35: 1-34 | C35: 34 | D35: 문경득 | E35: -
B36: 35-134 | C36: 100 | D36: 김가희 | E36: - | F36: -
B37: 135-250 | C37: 116 | D37: 김유빈 | E37: - | F37: -
B38: 251-311 | C38: 61 | D38: 안성은 | E38: - | F38: -
B39: 312-428 | C39: 117 | D39: 조수연 | F39: -
B40: 429-693 | C40: 265 | D40: 심경순 | E40: - | F40: -
B41: 694-856 | C41: 163 | D41: 송정현 | E41: 52 | F41: =C41-E41 -> 111
A42: 30 | B42: 3-104 | C42: 102 | D42: 송정현 | F42: 102
B43: 105-527 | C43: 423 | D43: 문경득 | E43: 232 | F43: 190
B44: 528-875 | C44: 348 | D44: 김정화 | F44: 348

Sheet 태깅진도
A1: 전주대 태깅 권별 진도표
H2: 2013.10.26
A3: 권수 | B3: 영인본 | D3: 잔여량 | E3: 입력자 | F3: v3 입력자 | G3: v3 입력범위 | H3: v3 입력량 | I3: 비고
B4: 쪽수 | C4: 분량
A5: 1 | B5: 1-234 | C5: 234 | D5: - | E5: 심경순 | F5: 김가희 | G5: 1-36 | H5: 36 | I5: 9.29
F6: 김유빈 | G6: 37-64 | H6: 28 | I6: 9.21
F7: 김가희 | G7: 65~100 | H7: 36 | I7: 9.29
F8: 김유빈 | G8: 101-160 | H8: 60 | I8: 10.13
F9: 조수연 | G9: 161-200 | H9: 40 | I9: 10.14
F10: 김가희 | G10: 201-234 | H10: 34 | I10: 10.26
B11: 235-358 | C11: 124 | D11: - | E11: 심경순 | F11: 김가희 | G11: 235-244 | H11: 10 | I11: 8.28
F12: 김유빈 | G12: 245-254 | H12: 10 | I12: 8.29
F13: 안성은 | G13: 255-264 | H13: 10 | I13: 8.29
F14: 조수연 | G14: 265-274 | H14: 10 | I14: 8.29
F15: 김가희 | G15: 275-288 | H15: 14 | I15: 9.04
F16: 김유빈 | G16: 289-302 | H16: 14 | I16: 9.01
F17: 안성은 | G17: 316-303 | H17: 14 | I17: 9.01
F18: 조수연 | G18: 317-330 | H18: 14 | I18: 9.09
F19: 조수연 | G19: 334-340 | H19: 7 | I19: 9.16
F20: 안성은 | G20: 341-358 | H20: 18 | I20: 9.15
B21: 359-576 | C21: 218 | D21: - | E21: 김정화 | F21: 김유빈 | G21: 363-370 | H21: 8 | I21: 9.21
F22: 안성은 | G22: 371-406 | H22: 36 | I22: 9.2
F23: 조수연 | G23: 407-442 | H23: 36 | I23: 9.22
F24: 김가희 | G24: 443-478 | H24: 35 | I24: 9.29
F25: 김유빈 | G25: 479-550 | H25: 72 | I25: 9.29
F26: 안성은 | G26: 551-576 | H26: 26 | I26: 9.29
B27: 594-797 | C27: 224 | D27: - | E27: 송정현 | F27: 김가희 | G27: 587-626 | H27: 40 | I27: 9.13
F28: 김유빈 | G28: 627-666 | H28: 40 | I28: 9.1
F29: 조수연 | G29: 667-686 | H29: 20 | I29: 9.16
F30: 안성은 | G30: 687-726 | H30: 40 | I30: 9.29
F31: 조수연 | G31: 727-797 | H31: 71 | I31: 9.29
A32: 2 | B32: 3-386 | C32: 384 | D32: 245 | E32: 송정현 | F32: 김가희 | G32: 1-60 | H32: 60 | I32: 10.9
F33: 안성은 | G33: 61-120 | H33: 60 | I33: 10.7
F34: 조수연 | G34: 121-140 | H34: 20 | I34: 10.14
F35: 김유빈 | G35: 141-186 | H35: 45 | I35: 10.26
F36: 김유빈 | G36: 187-259 | H36: 73 | I36: 11.04
F37: 김가희
B38: 387-892 | C38: 506 | D38: 410 | E38: 김정화 | F38: 조수연 | G38: 387-449 | H38: 63 | I38: 10.27
F39: 김가희 | G39: 450-483 | H39: 34 | I39: 10.26
A40: 3 | B40: 3-22 | C40: 19 | D40: 19 | E40: 김정화
B41: 23-220 | C41: 198 | D41: - | E41: 심경순 | F41: 안성은 | G41: 23-83 | H41: 61
F42: 김유빈 | G42: 84-102 | H42: 19
F43: 조수연 | G43: 103-179 | H43: 77 | I43: 11.04
F44: 김가희 | G44: 180-198 | H44: 19 | I44: 11.04
B45: 221-952 | C45: 732 | D45: 646 | E45: 문경득 | F45: 안성은 | G45: 221-290 | H45: 70 | I45: 11.04
F46: 김가희 | G46: 291-306 | H46: 16 | I46: 11.04

Sheet 개인입력
A1: <개인별 진도>
G2: 2013.10.26
A3: 입력자 | B3: 입력 | D3: 태깅 | F3: 검수
B4: 분배량 | C4: 잔여량 | D4: 분배량 | E4: 잔여량 | F4: 분배량 | G4: 잔여량
A5: 문경득 | B5: 457 | C5: 190 | D5: 732 | E5: 646 | F5: 203 | G5: -
A6: 심경순 | B6: 586 | C6: - | D6: 556 | E6: - | F6: 331 | G6: -
A7: 김정화 | B7: 949 | C7: 493 | D7: 743 | E7: 429 | F7: 331 | G7: -
A8: 송정현 | B8: 426 | C8: 213 | D8: 608 | E8: 245 | F8: 203 | G8: -
A9: 김가희 | B9: 464 | C9: - | D9: 334 | E9: 35 | G9: -
A10: 김유빈 | B10: 449 | C10: - | D10: 369 | E10: - | G10: -
A11: 안성은 | B11: 414 | C11: - | D11: 335 | E11: - | G11: -
A12: 조수연 | B12: 401 | C12: - | D12: 358 | E12: - | G12: -
A13: 이혜령 | B13: 306 | C13: - | F13: 1508 | G13: 224

Sheet 문경득
A1: <입력 진도>
F2: 2013.10.26
A3: 입력자 | B3: 권수 | C3: 쪽수 | D3: 분량 | E3: 분배량 | F3: 잔여량
A4: 문경득 | B4: 29 | C4: 1-34 | D4: 34 | E4: =SUM(D4:D5) -> 457 | F4: 190
B5: 30 | C5: 105-527 | D5: 423
A8: <태깅 진도>
F9: 2013.10.26
A10: 입력자 | B10: 권수 | C10: 쪽수 | D10: 분량 | E10: 분배량 | F10: 잔여량
A11: 문경득 | B11: 3 | C11: 221-952 | D11: 732 | E11: 732 | F11: 646
A14: <검수 진도>
F15: 2013.10.26
A16: 검수자 | B16: 권수 | C16: 쪽수 | D16: 분량 | E16: 분배량 | F16: 잔여량 | G16: 입력자
A17: 문경득 | B17: 28 | C17: 256-305 | D17: =305-256 -> 49 | E17: =SUM(D17:D20) -> 203 | F17: - | G17: 김유빈
B18: 28 | C18: 306-357 | D18: =357-306 -> 51 | G18: 안성은
B19: 28 | C19: 724-774 | D19: 51 | G19: 안성은
B20: 28 | C20: 877-928 | D20: 52 | G20: 김유빈

Sheet 심경순
A1: <입력 진도>
F2: 2013.10.26
A3: 입력자 | B3: 권수 | C3: 쪽수 | D3: 분량 | E3: 분배량 | F3: 잔여량
A4: 심경순 | B4: 26 | C4: 1-273 | D4: =273-1 -> 272 | E4: =SUM(D4:D6) -> 586 | F4: -
B5: 28 | C5: 3-52 | D5: =52-3 -> 49
B6: 29 | C6: 429-693 | D6: 265
A9: <태깅 진도>
F10: 2013.10.26
A11: 입력자 | B11: 권수 | C11: 쪽수 | D11: 분량 | E11: 분배량 | F11: 잔여량
A12: 심경순 | B12: 1 | C12: 1-234 | D12: 234 | E12: =SUM(D12:D14) -> 556 | F12: -
B13: 1 | C13: 235-358 | D13: 124
B14: 3 | C14: 23-220 | D14: 198
A17: <검수 진도>
F18: 2013.10.26
A19: 검수자 | B19: 권수 | C19: 쪽수 | D19: 분량 | E19: 분배량 | F19: 잔여량 | G19: 입력자
A20: 심경순 | B20: 28 | C20: 205-255 | D20: =255-205 -> 50 | E20: =SUM(D20:D27) -> 331 | F20: - | G20: 김가희
B21: 28 | C21: 619-637 | D21: =637-619 -> 18 | G21: 김가희
B22: 28 | C22: 639-669 | D22: =669-639 -> 30 | G22: 김유빈
B23: 28 | C23: 673-723 | D23: 51 | G23: 안성은
B24: 28 | C24: 775-836 | D24: 62 | G24: 안성은
B25: 28 | C25: 837-857 | D25: 51 | G25: 김가희
B26: 28 | C26: 859-876 | D26: 18 | G26: 김유빈
B27: 28 | C27: 928-948 | D27: 51 | G27: 김가희

Sheet 김정화
A1: <입력 진도>
F2: 2013.10.26
A3: 입력자 | B3: 권수 | C3: 쪽수 | D3: 분량 | E3: 분배량 | F3: 잔여량
A4: 김정화 | B4: 26 | C4: 597-888 | D4: =888-597 -> 291 | E4: =SUM(D4:D9) -> 949 | F4: 493
B5: 27 | C5: 119-263 | D5: 145
B6: 27 | C6: 879-920 | D6: =920-879 -> 41
B7: 27 | C7: 921-994 | D7: =994-921 -> 73
B8: 28 | C8: 103-154 | D8: =154-103 -> 51
B9: 30 | C9: 528-875 | D9: 348
A12: <태깅 진도>
F13: 2013.10.26
A14: 입력자 | B14: 권수 | C14: 쪽수 | D14: 분량 | E14: 분배량 | F14: 잔여량
A15: 김정화 | B15: 1 | C15: 359-576 | D15: 218 | E15: =SUM(D15:D17) -> 743 | F15: 429
B16: 2 | C16: 387-892 | D16: 506
B17: 3 | C17: 3-22 | D17: 19
A20: <검수 진도>
F21: 2013.10.26
A22: 검수자 | B22: 권수 | C22: 쪽수 | D22: 분량 | E22: 분배량 | F22: 잔여량 | G22: 입력자
A23: 김정화 | B23: 28 | C23: 205-255 | D23: =255-205 -> 50 | E23: =SUM(D23:D30) -> 331 | F23: - | G23: 김가희
B24: 28 | C24: 619-637 | D24: =637-619 -> 18 | G24: 김가희
B25: 28 | C25: 639-669 | D25: =669-639 -> 30 | G25: 김유빈
B26: 28 | C26: 673-723 | D26: 51 | G26: 안성은
B27: 28 | C27: 775-836 | D27: 62 | G27: 안성은
B28: 28 | C28: 837-857 | D28: 51 | G28: 김가희
B29: 28 | C29: 859-876 | D29: 18 | G29: 김유빈
B30: 28 | C30: 928-948 | D30: 51 | G30: 김가희

Sheet 송정현
A1: <입력 진도>
F2: 2013.10.26
A3: 입력자 | B3: 권수 | C3: 쪽수 | D3: 분량 | E3: 분배량 | F3: 잔여량
A4: 송정현 | B4: 27 | C4: 3-263 | D4: 116 | E4: =SUM(D4:D7) -> 426 | F4: -
B5: 28 | C5: 155-200 | D5: =200-155 -> 45
B6: 29 | C6: 694-856 | D6: 163
B7: 30 | C7: 3-104 | D7: 102
A10: <태깅 진도>
F11: 2013.10.26
A12: 입력자 | B12: 권수 | C12: 쪽수 | D12: 분량 | E12: 분배량 | F12: 잔여량
A13: 송정현 | B13: 1 | C13: 594-797 | D13: 224 | E13: =D13+D14 -> 608 | F13: 245
B14: 2 | C14: 3-386 | D14: 384
A17: <검수 진도>
F18: 2013.10.26
A19: 검수자 | B19: 권수 | C19: 쪽수 | D19: 분량 | E19: 분배량 | F19: 잔여량 | G19: 입력자
A20: 송정현 | B20: 28 | C20: 256-305 | D20: =305-256 -> 49 | E20: =SUM(D20:D23) -> 203 | F20: - | G20: 김유빈
B21: 28 | C21: 306-357 | D21: =357-306 -> 51 | G21: 안성은
B22: 28 | C22: 724-774 | D22: 51 | G22: 안성은
B23: 28 | C23: 877-928 | D23: 52 | G23: 김유빈

Sheet 김가희
A1: <입력 진도>
F2: 2013.10.26
A3: 입력자 | B3: 권수 | C3: 쪽수 | D3: 분량 | E3: 분배량 | F3: 잔여량
A4: 김가희 | B4: 27 | C4: 267-386 | D4: =386-267 -> 119 | E4: =SUM(D4:D11) -> 464 | F4: -
B5: 27 | C5: 573-584 | D5: =584-573 -> 11
B6: 27 | C6: 725-852 | D6: =852-725 -> 127
B7: 28 | C7: 205-255 | D7: =255-205 -> 50
B8: 28 | C8: 619-637 | D8: =637-619 -> 18
B9: 28 | C9: 837-857 | D9: =857-837 -> 20
B10: 28 | C10: 929-948 | D10: =948-929 -> 19
B11: 29 | C11: 35-134 | D11: 100
A14: <태깅 진도>
F15: 2013.10.26
A16: 입력자 | B16: 권수 | C16: 쪽수 | D16: 분량 | E16: 분배량 | F16: 잔여량
A17: 김가희 | B17: 1 | C17: 1-36 | D17: 36 | E17: =SUM(D17:D28) -> 334 | F17: =D25+D27+D28 -> 35
B18: 1 | C18: 65~100 | D18: 36
B19: 1 | C19: 201-234 | D19: 34
B20: 1 | C20: 235-244 | D20: 10
B21: 1 | C21: 275-288 | D21: 14
B22: 1 | C22: 443-478 | D22: 35
B23: 1 | C23: 587-626 | D23: 40
B24: 2 | C24: 1-60 | D24: 60
B25: 2
B26: 2 | C26: 450-483 | D26: 34
B27: 3 | C27: 180-198 | D27: 19
B28: 3 | C28: 291-306 | D28: 16

Sheet 김유빈
A1: <입력 진도>
F2: 2013.10.26
A3: 입력자 | B3: 권수 | C3: 쪽수 | D3: 분량 | E3: 분배량 | F3: 잔여량
A4: 김유빈 | B4: 27 | C4: 387-572 | D4: =572-387 -> 185 | E4: =SUM(D4:D8) -> 449 | F4: -
B5: 28 | C5: 256-305 | D5: =305-256 -> 49
B6: 28 | C6: 639-669 | D6: =669-639 -> 30
B7: 28 | C7: 859-928 | D7: =928-859 -> 69
B8: 29 | C8: 135-250 | D8: 116
A11: <태깅 진도>
F12: 2013.10.26
A13: 입력자 | B13: 권수 | C13: 쪽수 | D13: 분량 | E13: 분배량 | F13: 잔여량
A14: 김유빈 | B14: 1 | C14: 37-64 | D14: 28 | E14: =SUM(D14:D23) -> 369
B15: 1 | C15: 101-160 | D15: 60
B16: 1 | C16: 245-254 | D16: 10
B17: 1 | C17: 289-302 | D17: 14
B18: 1 | C18: 363-370 | D18: 8
B19: 1 | C19: 479-550 | D19: 72
B20: 1 | C20: 627-666 | D20: 40
B21: 2 | C21: 141-186 | D21: 45
B22: 2 | C22: 187-259 | D22: 73
B23: 3 | C23: 84-102 | D23: 19

Sheet 안성은
A1: <입력 진도>
F2: 2013.10.26
A3: 입력자 | B3: 권수 | C3: 쪽수 | D3: 분량 | E3: 분배량 | F3: 잔여량
A4: 안성은 | B4: 27 | C4: 585-724 | D4: =724-585 -> 139 | E4: =SUM(D4:D7) -> 414 | F4: -
B5: 28 | C5: 306-357 | D5: =357-306 -> 51
B6: 28 | C6: 673-836 | D6: =836-673 -> 163
B7: 29 | C7: 251-311 | D7: 61
A10: <태깅 진도>
F11: 2013.10.26
A12: 입력자 | B12: 권수 | C12: 쪽수 | D12: 분량 | E12: 분배량 | F12: 잔여량
A13: 안성은 | B13: 1 | C13: 255-264 | D13: 10 | E13: =SUM(D13:D21) -> 335
B14: 1 | C14: 316-303 | D14: 14
B15: 1 | C15: 341-358 | D15: 18
B16: 1 | C16: 371-406 | D16: 36
B17: 1 | C17: 551-576 | D17: 26
B18: 1 | C18: 687-726 | D18: 40
B19: 2 | C19: 61-120 | D19: 60
B20: 3 | C20: 23-83 | D20: 61
B21: 3 | C21: 221-290 | D21: 70

Sheet 조수연
A1: <입력 진도>
F2: 2013.10.26
A3: 입력자 | B3: 권수 | C3: 쪽수 | D3: 분량 | E3: 분배량 | F3: 잔여량
A4: 조수연 | B4: 27 | C4: 853-860 | D4: =860-853 -> 7 | E4: =SUM(D4:D7) -> 401 | F4: -
B5: 27 | C5: 861-878 | D5: =878-861 -> 17
B6: 28 | C6: 358-618 | D6: =618-358 -> 260
B7: 29 | C7: 312-428 | D7: 117
A10: <태깅 진도>
F11: 2013.10.26
A12: 입력자 | B12: 권수 | C12: 쪽수 | D12: 분량 | E12: 분배량 | F12: 잔여량
A13: 조수연 | B13: 1 | C13: 161-200 | D13: 40 | E13: =SUM(D13:D22) -> 358
B14: 1 | C14: 265-274 | D14: 10
B15: 1 | C15: 317-330 | D15: 14
B16: 1 | C16: 334-340 | D16: 7
B17: 1 | C17: 407-442 | D17: 36
B18: 1 | C18: 667-686 | D18: 20
B19: 1 | C19: 727-797 | D19: 71
B20: 2 | C20: 121-140 | D20: 20
B21: 2 | C21: 387-449 | D21: 63
B22: 3 | C22: 103-179 | D22: 77

Sheet 이혜령
A1: <입력 진도>
F2: 2013.10.26
A3: 입력자 | B3: 권수 | C3: 쪽수 | D3: 분량 | E3: 분배량 | F3: 잔여량
A4: 이혜령 | B4: 26 | C4: 277-596 | D4: =534-277 -> 257 | E4: =SUM(D4:D5) -> 306 | F4: -
B5: 28 | C5: 53-102 | D5: =102-53 -> 49
A8: <검수 진도>
F9: 2013.10.26
A10: 검수자 | B10: 권수 | C10: 쪽수 | D10: 분량 | E10: 분배량 | F10: 잔여량 | G10: 입력자
A11: 이혜령 | B11: 26 | C11: 1-273 | D11: =273-1 -> 272 | E11: =SUM(D11:D25) -> 1508 | F11: 224 | G11: 심경순
B12: 26 | C12: 597-888 | D12: =888-597 -> 291 | G12: 김정화
B13: 27 | C13: 3-118 | D13: 116 | G13: 송정현
B14: 28 | C14: 3-52 | D14: =52-3 -> 49 | G14: 심경순
B15: 28 | C15: 103-154 | D15: =154-103 -> 51 | G15: 김정화
B16: 28 | C16: 205-255 | D16: =255-205 -> 50 | G16: 김가희
B17: 28 | C17: 256-305 | D17: =305-256 -> 49 | G17: 김유빈
B18: 28 | C18: 306-357 | D18: =357-306 -> 51 | G18: 안성은
B19: 28 | C19: 358-618 | D19: =618-358 -> 260 | G19: 조수연
B20: 28 | C20: 619-637 | D20: =637-619 -> 18 | G20: 김가희
B21: 28 | C21: 639-669 | D21: =669-639 -> 30 | G21: 김유빈
B22: 28 | C22: 673-836 | D22: =836-673 -> 163 | G22: 안성은
B23: 28 | C23: 837-857 | D23: =857-837 -> 20 | G23: 김가희
B24: 28 | C24: 859-928 | D24: =928-859 -> 69 | G24: 김유빈
B25: 28 | C25: 929-948 | D25: =948-929 -> 19 | G25: 김가희
